[Event "Titled Tuesday Blitz March 28 Early 2023"]
[White "Gatterer, Florian"]
[Black "Torres Dominguez, David"]
[WhiteFideId "811688"]
[BlackFideId "2220857"]
[WhiteElo "2221"]
[BlackElo "1999"]
[Result "1/2-1/2"]
[Round "03"]
[TimeControl "180+2"]
[Date "2023.03.28"]
[WhiteClock "0:00:48"]
[BlackClock "0:00:23"]

1. c4 {[%clk 0:03:00]}  e5 {[%clk 0:02:57]} 2. Nc3 {[%clk 0:03:00]}  Nc6 {[%clk 0:02:57]} 3. Nf3 {[%clk 0:03:00]}  f5 {[%clk 0:02:58]} 4. d4 {[%clk 0:02:59]}  e4 {[%clk 0:02:58]} 5. Ng5 {[%clk 0:02:56]}  Bb4 {[%clk 0:02:59]} 6. g3 {[%clk 0:02:49]}  Bxc3+ {[%clk 0:02:55]} 7. bxc3 {[%clk 0:02:48]}  Nf6 {[%clk 0:02:55]} 8. Bg2 {[%clk 0:02:47]}  d6 {[%clk 0:02:55]} 9. h4 {[%clk 0:02:46]}  O-O {[%clk 0:02:54]} 10. a4 {[%clk 0:02:42]}  a5 {[%clk 0:02:47]} 11. Ba3 {[%clk 0:02:39]}  b6 {[%clk 0:02:12]} 12. e3 {[%clk 0:02:35]}  Ba6 {[%clk 0:02:06]} 13. Ne6 {[%clk 0:02:31]}  Qe7 {[%clk 0:02:03]} 14. Nxf8 {[%clk 0:02:30]}  Qxf8 {[%clk 0:02:02]} 15. Bf1 {[%clk 0:02:24]}  Re8 {[%clk 0:01:48]} 16. Be2 {[%clk 0:02:21]}  Qf7 {[%clk 0:01:46]} 17. c5 {[%clk 0:02:15]}  Bxe2 {[%clk 0:01:40]} 18. Qxe2 {[%clk 0:02:15]}  dxc5 {[%clk 0:01:36]} 19. Qb5 {[%clk 0:01:59]}  Na7 {[%clk 0:01:27]} 20. Qe2 {[%clk 0:01:46]}  cxd4 {[%clk 0:01:18]} 21. cxd4 {[%clk 0:01:41]}  Nd5 {[%clk 0:01:16]} 22. Rc1 {[%clk 0:01:34]}  Qd7 {[%clk 0:01:12]} 23. Qc4 {[%clk 0:01:23]}  h6 {[%clk 0:01:01]} 24. O-O {[%clk 0:01:19]}  Re6 {[%clk 0:00:57]} 25. Qa6 {[%clk 0:01:06]}  Nc6 {[%clk 0:00:49]} 26. Qb5 {[%clk 0:00:57]}  Rg6 {[%clk 0:00:44]} 27. Rxc6 {[%clk 0:00:50]}  Qxc6 {[%clk 0:00:31]} 28. Qb3 {[%clk 0:00:48]}  Qd7 {[%clk 0:00:23]} 1/2-1/2


[Site "https://www.chess.com"]

[Event "Titled Tuesday Blitz March 28 Early 2023"]
[White "Begunov, Konstantin"]
[Black "Kiseleva, Arina"]
[WhiteFideId "4118510"]
[BlackFideId "4164989"]
[WhiteElo "2079"]
[BlackElo "1756"]
[Result "1-0"]
[Round "03"]
[TimeControl "180+2"]
[Date "2023.03.28"]
[WhiteClock "0:00:08"]
[BlackClock "0:00:03"]

1. d4 {[%clk 0:02:57]}  Nf6 {[%clk 0:02:59]} 2. c4 {[%clk 0:02:57]}  e6 {[%clk 0:02:59]} 3. Nf3 {[%clk 0:02:56]}  Bb4+ {[%clk 0:03:00]} 4. Nbd2 {[%clk 0:02:56]}  d6 {[%clk 0:02:58]} 5. a3 {[%clk 0:02:50]}  Bxd2+ {[%clk 0:02:57]} 6. Bxd2 {[%clk 0:02:51]}  O-O {[%clk 0:02:52]} 7. Bg5 {[%clk 0:02:51]}  h6 {[%clk 0:02:51]} 8. Bh4 {[%clk 0:02:51]}  Nbd7 {[%clk 0:02:48]} 9. e3 {[%clk 0:02:50]}  e5 {[%clk 0:02:23]} 10. Qc2 {[%clk 0:02:32]}  exd4 {[%clk 0:02:00]} 11. Nxd4 {[%clk 0:02:30]}  Ne5 {[%clk 0:02:00]} 12. Be2 {[%clk 0:02:23]}  Ng6 {[%clk 0:01:59]} 13. Bg3 {[%clk 0:02:18]}  Bg4 {[%clk 0:01:55]} 14. Bxg4 {[%clk 0:02:04]}  Nxg4 {[%clk 0:01:56]} 15. Qe4 {[%clk 0:02:02]}  Nf6 {[%clk 0:01:36]} 16. Qxb7 {[%clk 0:02:02]}  Rb8 {[%clk 0:01:22]} 17. Qxa7 {[%clk 0:02:02]}  Rxb2 {[%clk 0:01:20]} 18. Nb5 {[%clk 0:01:50]}  c6 {[%clk 0:00:36]} 19. Nxd6 {[%clk 0:01:35]}  Nh5 {[%clk 0:00:36]} 20. c5 {[%clk 0:01:14]}  Nxg3 {[%clk 0:00:35]} 21. hxg3 {[%clk 0:01:15]}  Qg5 {[%clk 0:00:21]} 22. O-O {[%clk 0:01:06]}  Qh5 {[%clk 0:00:19]} 23. Rab1 {[%clk 0:00:41]}  Rc2 {[%clk 0:00:16]} 24. Rb8 {[%clk 0:00:34]}  Rxb8 {[%clk 0:00:05]} 25. Qxb8+ {[%clk 0:00:35]}  Kh7 {[%clk 0:00:05]} 26. Nxf7 {[%clk 0:00:26]}  Nh4 {[%clk 0:00:03]} 27. Qh8+ {[%clk 0:00:16]}  Kg6 {[%clk 0:00:03]} 28. gxh4 {[%clk 0:00:16]}  Kxf7 {[%clk 0:00:02]} 29. g3 {[%clk 0:00:14]}  Qxc5 {[%clk 0:00:03]} 30. Qh7 {[%clk 0:00:09]}  Ra2 {[%clk 0:00:02]} 31. Rd1 {[%clk 0:00:08]}  Qc2 {[%clk 0:00:03]} 32. Qxc2 {[%clk 0:00:05]}  Rxc2 {[%clk 0:00:03]} 33. Ra1 {[%clk 0:00:04]}  c5 {[%clk 0:00:03]} 34. a4 {[%clk 0:00:04]}  Ke6 {[%clk 0:00:04]} 35. a5 {[%clk 0:00:05]}  Rb2 {[%clk 0:00:04]} 36. a6 {[%clk 0:00:06]}  Rb8 {[%clk 0:00:04]} 37. a7 {[%clk 0:00:06]}  Ra8 {[%clk 0:00:05]} 38. Kf1 {[%clk 0:00:07]}  Kd6 {[%clk 0:00:05]} 39. Ke2 {[%clk 0:00:08]}  Kc6 {[%clk 0:00:05]} 40. Kd3 {[%clk 0:00:09]}  Kb6 {[%clk 0:00:05]} 41. Kc4 {[%clk 0:00:09]}  Kc6 {[%clk 0:00:05]} 42. e4 {[%clk 0:00:09]}  Kd6 {[%clk 0:00:05]} 43. f4 {[%clk 0:00:09]}  g6 {[%clk 0:00:05]} 44. e5+ {[%clk 0:00:09]}  Ke6 {[%clk 0:00:05]} 45. Ra6+ {[%clk 0:00:08]}  Kf5 {[%clk 0:00:05]} 46. Kxc5 {[%clk 0:00:08]}  Kg4 {[%clk 0:00:05]} 47. e6 {[%clk 0:00:09]}  Kxg3 {[%clk 0:00:05]} 48. e7 {[%clk 0:00:08]}  Kxf4 {[%clk 0:00:05]} 49. Kc6 {[%clk 0:00:09]}  g5 {[%clk 0:00:05]} 50. hxg5 {[%clk 0:00:07]}  hxg5 {[%clk 0:00:05]} 51. Kb7 {[%clk 0:00:08]}  Re8 {[%clk 0:00:04]} 52. a8=Q {[%clk 0:00:08]}  Rxa8 {[%clk 0:00:03]} 53. Rxa8 {[%clk 0:00:08]} 1-0


[Site "https://www.chess.com"]

[Event "Titled Tuesday Blitz March 28 Early 2023"]
[White "Baruch, Liam"]
[Black "Valgmae, Toomas"]
[WhiteFideId "14322064"]
[BlackFideId "4502523"]
[WhiteElo "2154"]
[BlackElo "2170"]
[Result "0-1"]
[Round "03"]
[TimeControl "180+2"]
[Date "2023.03.28"]
[WhiteClock "0:00:13"]
[BlackClock "0:01:02"]

1. e4 {[%clk 0:03:00]}  d6 {[%clk 0:03:00]} 2. d4 {[%clk 0:03:00]}  Nf6 {[%clk 0:03:00]} 3. Nc3 {[%clk 0:03:00]}  g6 {[%clk 0:03:00]} 4. f3 {[%clk 0:03:00]}  c6 {[%clk 0:03:00]} 5. Be3 {[%clk 0:03:01]}  b5 {[%clk 0:03:01]} 6. Qd2 {[%clk 0:03:00]}  Nbd7 {[%clk 0:03:01]} 7. Nge2 {[%clk 0:02:56]}  Nb6 {[%clk 0:03:01]} 8. Nf4 {[%clk 0:02:51]}  Rb8 {[%clk 0:02:59]} 9. Bd3 {[%clk 0:02:44]}  Nc4 {[%clk 0:02:58]} 10. Bxc4 {[%clk 0:02:39]}  bxc4 {[%clk 0:02:59]} 11. b3 {[%clk 0:02:34]}  Bg7 {[%clk 0:02:58]} 12. O-O {[%clk 0:02:30]}  O-O {[%clk 0:02:58]} 13. Rad1 {[%clk 0:02:17]}  Ba6 {[%clk 0:02:55]} 14. Rfe1 {[%clk 0:02:10]}  Re8 {[%clk 0:02:54]} 15. e5 {[%clk 0:01:47]}  Nd7 {[%clk 0:02:46]} 16. e6 {[%clk 0:01:44]}  Nf6 {[%clk 0:02:44]} 17. exf7+ {[%clk 0:01:35]}  Kxf7 {[%clk 0:02:45]} 18. Bf2 {[%clk 0:01:34]}  Bc8 {[%clk 0:02:27]} 19. d5 {[%clk 0:01:30]}  cxd5 {[%clk 0:02:24]} 20. Bxa7 {[%clk 0:01:09]}  Ra8 {[%clk 0:02:19]} 21. Bd4 {[%clk 0:01:08]}  e5 {[%clk 0:02:00]} 22. Nfxd5 {[%clk 0:00:57]}  exd4 {[%clk 0:01:57]} 23. Qxd4 {[%clk 0:00:54]}  Be6 {[%clk 0:01:35]} 24. bxc4 {[%clk 0:00:41]}  Nxd5 {[%clk 0:01:32]} 25. Qd3 {[%clk 0:00:21]}  Nxc3 {[%clk 0:01:24]} 26. Rd2 {[%clk 0:00:18]}  Qc7 {[%clk 0:01:18]} 27. f4 {[%clk 0:00:12]}  Qxc4 {[%clk 0:01:15]} 28. Qxd6 {[%clk 0:00:13]}  Rad8 {[%clk 0:01:02]} 0-1


[Site "https://www.chess.com"]

[Event "Titled Tuesday Blitz March 28 Early 2023"]
[White "Krzywda, Andrzej"]
[Black "Bondau"]
[WhiteFideId "1114565"]
[WhiteElo "2155"]
[BlackElo "2757"]
[Result "0-1"]
[Round "03"]
[TimeControl "180+2"]
[Date "2023.03.28"]
[WhiteClock "0:00:01"]
[BlackClock "0:00:47"]

1. e4 {[%clk 0:03:00]}  c5 {[%clk 0:02:59]} 2. Nf3 {[%clk 0:03:01]}  d6 {[%clk 0:02:59]} 3. d4 {[%clk 0:03:01]}  cxd4 {[%clk 0:03:00]} 4. Nxd4 {[%clk 0:03:02]}  Nf6 {[%clk 0:03:00]} 5. Nc3 {[%clk 0:03:03]}  g6 {[%clk 0:03:01]} 6. Be3 {[%clk 0:03:02]}  Bg7 {[%clk 0:03:01]} 7. f3 {[%clk 0:03:03]}  O-O {[%clk 0:03:02]} 8. Qd2 {[%clk 0:03:04]}  Nc6 {[%clk 0:03:01]} 9. O-O-O {[%clk 0:03:04]}  d5 {[%clk 0:03:01]} 10. exd5 {[%clk 0:02:59]}  Nxd5 {[%clk 0:03:01]} 11. Nxc6 {[%clk 0:02:58]}  bxc6 {[%clk 0:03:01]} 12. Bd4 {[%clk 0:02:59]}  Bxd4 {[%clk 0:03:00]} 13. Qxd4 {[%clk 0:02:59]}  Qb6 {[%clk 0:03:00]} 14. Nxd5 {[%clk 0:02:38]}  cxd5 {[%clk 0:02:59]} 15. Qxb6 {[%clk 0:02:30]}  axb6 {[%clk 0:02:59]} 16. a3 {[%clk 0:02:03]}  Bb7 {[%clk 0:02:57]} 17. f4 {[%clk 0:01:59]}  Rfd8 {[%clk 0:02:57]} 18. Bd3 {[%clk 0:01:43]}  d4 {[%clk 0:02:52]} 19. Rhg1 {[%clk 0:01:43]}  Rd6 {[%clk 0:02:45]} 20. Rdf1 {[%clk 0:01:41]}  e6 {[%clk 0:02:44]} 21. g4 {[%clk 0:01:36]}  Rad8 {[%clk 0:02:43]} 22. h4 {[%clk 0:01:35]}  Kg7 {[%clk 0:02:34]} 23. Kd2 {[%clk 0:01:33]}  Bc6 {[%clk 0:02:31]} 24. Re1 {[%clk 0:01:29]}  Bd5 {[%clk 0:02:30]} 25. f5 {[%clk 0:01:21]}  Rc6 {[%clk 0:02:05]} 26. Rgf1 {[%clk 0:01:17]}  f6 {[%clk 0:01:55]} 27. fxg6 {[%clk 0:00:58]}  hxg6 {[%clk 0:01:54]} 28. h5 {[%clk 0:00:59]}  gxh5 {[%clk 0:01:38]} 29. gxh5 {[%clk 0:01:00]}  Rh8 {[%clk 0:01:33]} 30. Rg1+ {[%clk 0:00:48]}  Kf8 {[%clk 0:01:31]} 31. Rg6 {[%clk 0:00:33]}  e5 {[%clk 0:01:09]} 32. Rf1 {[%clk 0:00:15]}  Ke7 {[%clk 0:01:04]} 33. h6 {[%clk 0:00:13]}  e4 {[%clk 0:00:54]} 34. Bxe4 {[%clk 0:00:11]}  Bxe4 {[%clk 0:00:53]} 35. Re1 {[%clk 0:00:07]}  Re6 {[%clk 0:00:53]} 36. Rg7+ {[%clk 0:00:07]}  Kd6 {[%clk 0:00:51]} 37. h7 {[%clk 0:00:04]}  Rxh7 {[%clk 0:00:47]} 38. Rxe4 {[%clk 0:00:02]}  Rxg7 {[%clk 0:00:47]} 39. Rxd4+ {[%clk 0:00:01]}  Kc5 {[%clk 0:00:47]} 0-1


[Site "https://www.chess.com"]

[Event "Titled Tuesday Blitz March 28 Early 2023"]
[White "Hasangatin, Ramil"]
[Black "Chan, Kim Yew"]
[WhiteFideId "4122160"]
[BlackFideId "5717981"]
[WhiteElo "2275"]
[BlackElo "2206"]
[Result "1-0"]
[Round "03"]
[TimeControl "180+2"]
[Date "2023.03.28"]
[WhiteClock "0:01:47"]
[BlackClock "0:00:05"]

1. e4 {[%clk 0:03:00]}  e5 {[%clk 0:02:58]} 2. Nf3 {[%clk 0:03:01]}  Nf6 {[%clk 0:02:59]} 3. Nxe5 {[%clk 0:03:00]}  d6 {[%clk 0:02:59]} 4. Nf3 {[%clk 0:03:00]}  Nxe4 {[%clk 0:02:59]} 5. Qe2 {[%clk 0:03:00]}  Qe7 {[%clk 0:02:57]} 6. d3 {[%clk 0:03:01]}  Nf6 {[%clk 0:02:57]} 7. Bg5 {[%clk 0:03:02]}  Qxe2+ {[%clk 0:02:57]} 8. Bxe2 {[%clk 0:03:03]}  Be7 {[%clk 0:02:58]} 9. Nc3 {[%clk 0:03:03]}  c6 {[%clk 0:02:56]} 10. O-O-O {[%clk 0:03:03]}  O-O {[%clk 0:02:35]} 11. Rhe1 {[%clk 0:03:02]}  h6 {[%clk 0:02:27]} 12. Bh4 {[%clk 0:03:02]}  Bg4 {[%clk 0:01:47]} 13. Nd4 {[%clk 0:03:01]}  Bxe2 {[%clk 0:01:47]} 14. Rxe2 {[%clk 0:03:02]}  Bd8 {[%clk 0:01:39]} 15. Nf5 {[%clk 0:03:01]}  d5 {[%clk 0:01:35]} 16. Ne7+ {[%clk 0:03:00]}  Bxe7 {[%clk 0:01:31]} 17. Rxe7 {[%clk 0:03:01]}  g5 {[%clk 0:01:22]} 18. Bg3 {[%clk 0:03:01]}  Nbd7 {[%clk 0:01:23]} 19. Ne2 {[%clk 0:02:42]}  Rfe8 {[%clk 0:01:17]} 20. Rxe8+ {[%clk 0:02:41]}  Rxe8 {[%clk 0:01:15]} 21. Nd4 {[%clk 0:02:42]}  Kh7 {[%clk 0:01:01]} 22. Kd2 {[%clk 0:02:38]}  Kg6 {[%clk 0:00:57]} 23. Bd6 {[%clk 0:02:35]}  Ng4 {[%clk 0:00:45]} 24. f3 {[%clk 0:02:32]}  Ngf6 {[%clk 0:00:31]} 25. g4 {[%clk 0:02:31]}  h5 {[%clk 0:00:30]} 26. h3 {[%clk 0:02:31]}  hxg4 {[%clk 0:00:30]} 27. hxg4 {[%clk 0:02:31]}  Rh8 {[%clk 0:00:30]} 28. Nf5 {[%clk 0:02:30]}  Rh3 {[%clk 0:00:28]} 29. Rf1 {[%clk 0:02:29]}  Ne8 {[%clk 0:00:24]} 30. Ba3 {[%clk 0:02:14]}  Ne5 {[%clk 0:00:16]} 31. Ke2 {[%clk 0:02:12]}  Rh2+ {[%clk 0:00:16]} 32. Rf2 {[%clk 0:02:12]}  Rxf2+ {[%clk 0:00:16]} 33. Kxf2 {[%clk 0:02:13]}  Ng7 {[%clk 0:00:13]} 34. Nd6 {[%clk 0:02:07]}  b5 {[%clk 0:00:10]} 35. b4 {[%clk 0:01:56]}  Ne6 {[%clk 0:00:09]} 36. Bb2 {[%clk 0:01:55]}  Nd7 {[%clk 0:00:07]} 37. Nc8 {[%clk 0:01:52]}  a6 {[%clk 0:00:07]} 38. Ne7+ {[%clk 0:01:52]}  Kh7 {[%clk 0:00:06]} 39. Nxc6 {[%clk 0:01:53]}  Nb6 {[%clk 0:00:05]} 40. Nb8 {[%clk 0:01:48]}  Nc7 {[%clk 0:00:05]} 41. Be5 {[%clk 0:01:47]} 1-0


[Site "https://www.chess.com"]

[Event "Titled Tuesday Blitz March 28 Early 2023"]
[White "Orlov, Georgi"]
[Black "Fathy, Elameir"]
[WhiteFideId "2011271"]
[BlackFideId "10600396"]
[WhiteElo "2591"]
[BlackElo "2311"]
[Result "1-0"]
[Round "03"]
[TimeControl "180+2"]
[Date "2023.03.28"]
[WhiteClock "0:01:13"]
[BlackClock "0:00:17"]

1. e4 {[%clk 0:03:00]}  c6 {[%clk 0:02:56]} 2. Nc3 {[%clk 0:03:00]}  d5 {[%clk 0:02:56]} 3. Nf3 {[%clk 0:03:00]}  Bg4 {[%clk 0:02:56]} 4. h3 {[%clk 0:03:00]}  Bxf3 {[%clk 0:02:56]} 5. Qxf3 {[%clk 0:03:00]}  e6 {[%clk 0:02:57]} 6. d4 {[%clk 0:03:00]}  Nf6 {[%clk 0:02:54]} 7. Bd3 {[%clk 0:02:59]}  dxe4 {[%clk 0:02:54]} 8. Nxe4 {[%clk 0:02:59]}  Qxd4 {[%clk 0:02:55]} 9. O-O {[%clk 0:02:57]}  Nbd7 {[%clk 0:02:51]} 10. Be3 {[%clk 0:02:57]}  Qb4 {[%clk 0:02:32]} 11. a3 {[%clk 0:02:51]}  Qa5 {[%clk 0:02:32]} 12. b4 {[%clk 0:02:45]}  Qc7 {[%clk 0:02:32]} 13. Bf4 {[%clk 0:02:45]}  e5 {[%clk 0:02:32]} 14. Bg3 {[%clk 0:02:37]}  Be7 {[%clk 0:02:33]} 15. Rfe1 {[%clk 0:02:30]}  O-O {[%clk 0:02:33]} 16. Nxf6+ {[%clk 0:02:28]}  Bxf6 {[%clk 0:02:34]} 17. Rad1 {[%clk 0:02:19]}  Rad8 {[%clk 0:02:25]} 18. Qg4 {[%clk 0:02:04]}  g6 {[%clk 0:02:17]} 19. f4 {[%clk 0:01:59]}  exf4 {[%clk 0:02:11]} 20. Bxf4 {[%clk 0:01:59]}  Be5 {[%clk 0:01:15]} 21. Bg5 {[%clk 0:01:51]}  Bf6 {[%clk 0:00:38]} 22. Bf4 {[%clk 0:01:50]}  Be5 {[%clk 0:00:39]} 23. Be3 {[%clk 0:01:31]}  Nf6 {[%clk 0:00:32]} 24. Qf3 {[%clk 0:01:28]}  Kg7 {[%clk 0:00:27]} 25. Bg5 {[%clk 0:01:19]}  h6 {[%clk 0:00:23]} 26. Bh4 {[%clk 0:01:18]}  Bd4+ {[%clk 0:00:20]} 27. Kh1 {[%clk 0:01:17]}  Rfe8 {[%clk 0:00:21]} 28. Rf1 {[%clk 0:01:15]}  Re6 {[%clk 0:00:18]} 29. Bc4 {[%clk 0:01:14]}  Red6 {[%clk 0:00:17]} 30. Rxd4 {[%clk 0:01:13]} 1-0


[Site "https://www.chess.com"]

[Event "Titled Tuesday Blitz March 28 Early 2023"]
[White "Ovezdurdyyeva, Jemal"]
[Black "Yelisieiev, Yevhenii"]
[WhiteFideId "14001888"]
[BlackFideId "14139642"]
[WhiteElo "2043"]
[BlackElo "2447"]
[Result "0-1"]
[Round "03"]
[TimeControl "180+2"]
[Date "2023.03.28"]
[WhiteClock "0:00:05"]
[BlackClock "0:00:05"]

1. e4 {[%clk 0:03:00]}  d6 {[%clk 0:03:00]} 2. d4 {[%clk 0:02:59]}  Nf6 {[%clk 0:03:01]} 3. Nc3 {[%clk 0:02:59]}  e5 {[%clk 0:03:02]} 4. Nf3 {[%clk 0:02:56]}  Nbd7 {[%clk 0:03:02]} 5. Be2 {[%clk 0:02:54]}  c6 {[%clk 0:03:02]} 6. O-O {[%clk 0:02:54]}  Be7 {[%clk 0:03:01]} 7. h3 {[%clk 0:02:52]}  b5 {[%clk 0:03:00]} 8. a3 {[%clk 0:02:52]}  Bb7 {[%clk 0:03:00]} 9. Nh4 {[%clk 0:02:37]}  g6 {[%clk 0:02:38]} 10. Bh6 {[%clk 0:02:32]}  Bf8 {[%clk 0:02:20]} 11. Be3 {[%clk 0:02:02]}  Bg7 {[%clk 0:02:17]} 12. d5 {[%clk 0:01:54]}  cxd5 {[%clk 0:02:14]} 13. Nxb5 {[%clk 0:01:54]}  Nxe4 {[%clk 0:01:55]} 14. f3 {[%clk 0:01:36]}  a6 {[%clk 0:01:36]} 15. fxe4 {[%clk 0:01:33]}  axb5 {[%clk 0:01:35]} 16. Nf3 {[%clk 0:01:27]}  d4 {[%clk 0:01:23]} 17. Bg5 {[%clk 0:01:12]}  f6 {[%clk 0:01:20]} 18. Bh4 {[%clk 0:01:10]}  Qb6 {[%clk 0:00:59]} 19. Qd3 {[%clk 0:01:08]}  O-O {[%clk 0:00:25]} 20. b4 {[%clk 0:01:08]}  Bc6 {[%clk 0:00:19]} 21. Bf2 {[%clk 0:01:03]}  Qb7 {[%clk 0:00:19]} 22. Nd2 {[%clk 0:01:01]}  f5 {[%clk 0:00:15]} 23. exf5 {[%clk 0:01:00]}  gxf5 {[%clk 0:00:15]} 24. Qg3 {[%clk 0:00:54]}  Kh8 {[%clk 0:00:15]} 25. Rfc1 {[%clk 0:00:39]}  e4 {[%clk 0:00:14]} 26. Nf1 {[%clk 0:00:23]}  f4 {[%clk 0:00:13]} 27. Qh4 {[%clk 0:00:21]}  Be5 {[%clk 0:00:10]} 28. Bh5 {[%clk 0:00:14]}  Rg8 {[%clk 0:00:09]} 29. Bg4 {[%clk 0:00:14]}  Nf6 {[%clk 0:00:09]} 30. Bf5 {[%clk 0:00:14]}  e3 {[%clk 0:00:09]} 31. g4 {[%clk 0:00:07]}  fxg3 {[%clk 0:00:06]} 32. Bxg3 {[%clk 0:00:05]}  Bh1 {[%clk 0:00:05]} 0-1


[Site "https://www.chess.com"]

[Event "Titled Tuesday Blitz March 28 Early 2023"]
[White "Vovk, Orest"]
[Black "Buscar, Michael"]
[WhiteFideId "14113490"]
[BlackFideId "2603616"]
[WhiteElo "2215"]
[BlackElo "2010"]
[Result "1/2-1/2"]
[Round "03"]
[TimeControl "180+2"]
[Date "2023.03.28"]
[WhiteClock "0:00:03"]
[BlackClock "0:00:12"]

1. h4 {[%clk 0:03:00]}  b6 {[%clk 0:02:57]} 2. h5 {[%clk 0:03:00]}  Bb7 {[%clk 0:02:56]} 3. Nc3 {[%clk 0:03:00]}  e6 {[%clk 0:02:55]} 4. e4 {[%clk 0:03:00]}  c5 {[%clk 0:02:55]} 5. Nf3 {[%clk 0:03:00]}  d6 {[%clk 0:02:55]} 6. d4 {[%clk 0:02:59]}  cxd4 {[%clk 0:02:54]} 7. Nxd4 {[%clk 0:02:59]}  a6 {[%clk 0:02:55]} 8. Be3 {[%clk 0:02:58]}  h6 {[%clk 0:02:54]} 9. Qd2 {[%clk 0:02:58]}  Nd7 {[%clk 0:02:54]} 10. O-O-O {[%clk 0:02:58]}  Ngf6 {[%clk 0:02:54]} 11. f3 {[%clk 0:02:57]}  Be7 {[%clk 0:02:54]} 12. g4 {[%clk 0:02:57]}  Rc8 {[%clk 0:02:52]} 13. g5 {[%clk 0:02:57]}  hxg5 {[%clk 0:02:52]} 14. Bxg5 {[%clk 0:02:56]}  Nxh5 {[%clk 0:02:52]} 15. f4 {[%clk 0:02:47]}  Bxg5 {[%clk 0:02:50]} 16. fxg5 {[%clk 0:02:47]}  Ne5 {[%clk 0:02:45]} 17. g6 {[%clk 0:02:37]}  Nxg6 {[%clk 0:02:42]} 18. Be2 {[%clk 0:02:34]}  Ng3 {[%clk 0:02:33]} 19. Rhg1 {[%clk 0:02:24]}  Nxe4 {[%clk 0:02:29]} 20. Nxe4 {[%clk 0:02:19]}  Bxe4 {[%clk 0:02:29]} 21. Bxa6 {[%clk 0:02:13]}  Rc5 {[%clk 0:02:18]} 22. Bb5+ {[%clk 0:02:07]}  Kf8 {[%clk 0:02:18]} 23. Rdf1 {[%clk 0:01:58]}  Kg8 {[%clk 0:02:12]} 24. Bd3 {[%clk 0:01:52]}  Qh4 {[%clk 0:01:48]} 25. Be2 {[%clk 0:01:28]}  Ne5 {[%clk 0:01:37]} 26. Rf4 {[%clk 0:01:12]}  Qh2 {[%clk 0:01:26]} 27. Qe3 {[%clk 0:01:10]}  d5 {[%clk 0:01:18]} 28. c3 {[%clk 0:00:59]}  Rh3 {[%clk 0:01:13]} 29. Qf2 {[%clk 0:00:55]}  Qxf2 {[%clk 0:01:10]} 30. Rxf2 {[%clk 0:00:55]}  Rh1 {[%clk 0:00:57]} 31. Rxh1 {[%clk 0:00:51]}  Bxh1 {[%clk 0:00:58]} 32. Kd2 {[%clk 0:00:48]}  Be4 {[%clk 0:00:55]} 33. b4 {[%clk 0:00:46]}  Rc8 {[%clk 0:00:54]} 34. a4 {[%clk 0:00:46]}  Ra8 {[%clk 0:00:53]} 35. Bb5 {[%clk 0:00:46]}  Nc4+ {[%clk 0:00:50]} 36. Bxc4 {[%clk 0:00:46]}  dxc4 {[%clk 0:00:51]} 37. Ke3 {[%clk 0:00:46]}  Bd3 {[%clk 0:00:49]} 38. Ra2 {[%clk 0:00:45]}  g5 {[%clk 0:00:45]} 39. a5 {[%clk 0:00:45]}  bxa5 {[%clk 0:00:44]} 40. Rxa5 {[%clk 0:00:45]}  Re8 {[%clk 0:00:32]} 41. Rxg5+ {[%clk 0:00:43]}  Kf8 {[%clk 0:00:32]} 42. Nc6 {[%clk 0:00:39]}  f6 {[%clk 0:00:29]} 43. Rc5 {[%clk 0:00:35]}  e5 {[%clk 0:00:29]} 44. b5 {[%clk 0:00:34]}  f5 {[%clk 0:00:17]} 45. Nxe5 {[%clk 0:00:33]}  Ke7 {[%clk 0:00:17]} 46. Kf4 {[%clk 0:00:25]}  Kd6 {[%clk 0:00:17]} 47. Rc6+ {[%clk 0:00:25]}  Kd5 {[%clk 0:00:17]} 48. Nd7 {[%clk 0:00:15]}  Re4+ {[%clk 0:00:16]} 49. Kg5 {[%clk 0:00:15]}  Re2 {[%clk 0:00:15]} 50. Nf6+ {[%clk 0:00:14]}  Ke5 {[%clk 0:00:16]} 51. b6 {[%clk 0:00:10]}  Rg2+ {[%clk 0:00:15]} 52. Kh6 {[%clk 0:00:10]}  Rb2 {[%clk 0:00:15]} 53. Nd7+ {[%clk 0:00:06]}  Kf4 {[%clk 0:00:15]} 54. Rc7 {[%clk 0:00:05]}  Ke3 {[%clk 0:00:13]} 55. b7 {[%clk 0:00:05]}  f4 {[%clk 0:00:13]} 56. b8=Q {[%clk 0:00:02]}  Rxb8 {[%clk 0:00:13]} 57. Nxb8 {[%clk 0:00:03]}  f3 {[%clk 0:00:13]} 58. Re7+ {[%clk 0:00:04]}  Kd2 {[%clk 0:00:13]} 59. Rf7 {[%clk 0:00:05]}  Ke2 {[%clk 0:00:12]} 60. Nc6 {[%clk 0:00:05]}  f2 {[%clk 0:00:13]} 61. Nd4+ {[%clk 0:00:04]}  Ke1 {[%clk 0:00:13]} 62. Re7+ {[%clk 0:00:04]}  Kd2 {[%clk 0:00:13]} 63. Rf7 {[%clk 0:00:04]}  f1=Q {[%clk 0:00:12]} 64. Rxf1 {[%clk 0:00:03]}  Bxf1 {[%clk 0:00:13]} 65. Nb5 {[%clk 0:00:04]}  Bg2 {[%clk 0:00:12]} 66. Nd6 {[%clk 0:00:03]}  Kxc3 {[%clk 0:00:12]} 67. Nxc4 {[%clk 0:00:03]} 1/2-1/2


[Site "https://www.chess.com"]